bitfinex-derivatives/quotes_ETHF0:USTF0_20251021
["timestamp","ask_amount","ask_price","bid_price","bid_amount"]
[1761073854734,0.7682,4016.9,4016.8,0.98023]
[1761073855030,1.21612,4016.9,4016.8,0.7487]
[1761073856138,0.87332,4016.9,4016.8,1.19663]
[1761073856738,0.00319629,4017.1,4017.0,1.33131]
[1761073858231,0.7682,4018.5,4018.0,0.1347]
[1761073858438,0.4254,4018.5,4018.4,0.7487]
[1761073859241,0.42743956,4018.5,4018.4,0.7487]
[1761073860141,0.77023956,4018.5,4018.4,0.7487]
[1761073860338,0.42743956,4018.5,4018.4,0.7487]
[1761073860534,0.00203956,4018.5,4018.4,0.7487]
[1761073861335,0.21403956,4018.5,4018.4,0.7487]
[1761073861535,0.42743956,4018.5,4018.4,0.7487]
[1761073864242,1.21596,4018.3,4018.2,3.2078]
[1761073864442,1.21599,4018.1,4018.0,0.5323]
[1761073864638,1.21599,4018.1,4018.0,1.3312]
[1761073864639,0.4254,4018.1,4018.0,1.3312]
[1761073864844,0.87318,4018.2,4018.1,0.7487]
[1761073865042,1.21598,4018.2,4018.1,0.3193]
[1761073865246,0.212,4017.8,4017.7,1.19653]
[1761073865740,0.65982,4017.8,4017.7,0.7487]
[1761073865945,1.21602,4017.8,4017.7,0.7487]
[1761073867042,0.7682,4017.8,4017.0,3.3425]
[1761073867239,1.21611,4017.0,4016.9,0.3193]
[1761073867642,1.21615,4016.6,4016.5,0.213]
[1761073867951,0.4254,4016.4,4016.3,3.6372]
[1761073868150,0.4254,4016.4,4016.3,3.9565]
[1761073868352,0.212,4016.4,4016.3,3.9565]
[1761073868549,0.7682,4016.4,4016.3,3.9565]
[1761073868749,0.4254,4016.4,4016.3,3.9565]
[1761073869948,0.212,4017.7,4017.5,0.58254]
[1761073870151,0.212,4018.0,4017.9,0.66421]
[1761073870344,3.2078,4018.2,4018.1,0.7487]
[1761073870651,3.2078,4018.2,4018.0,0.5825]
[1761073870652,0.66178956,4018.5,4018.4,0.7487]
[1761073870844,0.87518956,4018.5,4018.4,0.7487]
[1761073871042,0.44778,4018.2,4018.0,0.3477]
[1761073871243,0.212,4018.4,4018.3,0.7487]
[1761073871448,0.00203956,4018.5,4018.4,0.7487]
[1761073871642,0.00203956,4018.5,4018.0,3.7719]
[1761073871643,0.21403956,4018.5,4018.0,3.7719]
[1761073871951,0.66177956,4018.5,4018.4,0.4294]
[1761073872150,0.66177956,4018.5,4018.4,0.7487]
[1761073872846,0.00203956,4018.5,4018.4,0.7487]
[1761073874853,3.2078,4019.4,4019.3,0.2164]
[1761073875153,3.2078,4019.4,4019.3,0.7487]
[1761073875352,3.4198,4019.4,4019.3,0.7487]
[1761073875549,3.976,4019.4,4019.3,0.5323]
[1761073875758,0.5562,4019.2,4019.1,0.3193]
[1761073875946,0.77090359,4019.2,4019.1,0.32136442]
[1761073876248,0.42810359,4019.2,4019.1,0.75076442]
[1761073876453,0.00270359,4019.2,4019.1,0.75076442]
[1761073877255,0.42810359,4019.2,4019.1,0.75076442]
[1761073879754,5.77080359,4019.2,4019.1,0.00206442]
[1761073880158,1.21795,4018.4,4018.3,0.5733]
[1761073880346,0.5607,4018.9,4018.4,0.79595]
[1761073880551,0.5607,4018.9,4018.8,0.8026]
[1761073880552,0.6657,4018.9,4018.8,0.8026]
[1761073880758,0.218,4018.9,4018.8,0.8026]
[1761073881252,0.218,4018.9,4018.8,0.80449871]
[1761073881453,3.21050359,4019.2,4018.8,0.80449871]
[1761073881656,0.45036359,4019.2,4019.1,1.24327]
[1761073881957,0.00270359,4019.2,4019.1,1.24327]
[1761073882356,0.45036359,4019.2,4019.1,1.24327]
[1761073882962,0.67546359,4019.2,4019.1,1.24327]
[1761073883159,0.00270359,4019.2,4019.1,1.24327]
[1761073885262,0.00270359,4019.2,4019.1,0.7956]
[1761073886362,0.45036359,4019.2,4019.1,0.7956]
[1761073886571,0.90536359,4019.2,4019.1,0.7956]
[1761073886759,1.23606359,4019.2,4019.1,0.7956]
[1761073886966,0.45036359,4019.2,4019.1,4.0034]
[1761073887461,0.45036359,4019.2,4019.1,0.7956]
[1761073887857,0.67546359,4019.2,4019.1,0.7956]
[1761073888061,0.90536359,4019.2,4019.1,0.7956]
[1761073889673,4.11316359,4019.2,4019.1,0.7956]
[1761073889871,0.90536359,4019.2,4019.1,0.7956]
[1761073891376,0.4477,4018.9,4018.8,0.22639871]
[1761073891575,0.9027,4018.9,4018.8,0.44919871]
[1761073892073,0.9027,4018.9,4018.8,0.79749871]
[1761073892278,1.23348,4018.2,4018.1,0.2245]
[1761073892476,1.23348,4018.2,4018.1,0.4473]
[1761073892680,0.44778,4018.2,4018.1,3.6551]
[1761073893169,0.44778,4018.2,4018.1,3.65830185]
[1761073894069,1.00358,4018.2,4018.1,0.45050185]
[1761073894373,0.44778,4018.2,4018.1,0.79880185]
[1761073894966,1.00358,4018.2,4018.1,0.79880185]
[1761073895579,0.44778,4018.2,4018.1,0.79880185]
[1761073898875,1.23348,4018.2,4018.1,1.85e-06]
[1761073899273,1.23348,4018.2,4018.1,0.22450185]
[1761073899472,3.6628,4018.2,4017.0,3.2078]
[1761073899673,0.9029,4017.1,4017.0,3.83311492]
[1761073899868,1.0037,4017.1,4017.0,3.83311492]
[1761073900180,1.0037,4017.1,4017.0,4.04421492]
[1761073900676,1.2336,4017.1,4017.0,0.42409943]
[1761073900977,1.2336,4017.1,4017.0,0.00189943]
[1761073901277,6.2336,4017.1,4017.0,0.00189943]
[1761073901473,1.0038,4016.2,4016.1,0.62080743]
[1761073901676,1.0038,4016.2,4016.1,0.4222]
[1761073902274,1.2337,4016.2,4016.1,0.4222]
[1761073902580,1.23674493,4016.2,4016.1,0.42446744]
[1761073902784,1.00684493,4016.2,4016.1,0.42446744]
[1761073906576,1.23674493,4016.2,4016.1,0.42446744]
[1761073908682,1.23674493,4016.2,4016.1,7.44e-06]
[1761073908882,1.36483,4015.0,4014.9,3.2078]
[1761073909083,0.44824,4014.0,4013.9,3.2078]
[1761073909385,0.90994,4014.0,4013.9,3.40510293]
[1761073909787,0.90994,4014.0,4013.9,3.21088244]
[1761073911383,1.12334,4014.0,4013.9,3.21088244]
[1761073911988,1.33334,4014.0,4013.9,3.21088244]
[1761073912483,1.12334,4014.0,4013.9,3.21088244]
[1761073912791,0.3179,4014.2,4014.0,0.44824]
[1761073913089,0.3179,4014.1,4014.0,0.44824]
[1761073914292,0.3179,4014.4,4014.3,0.44821]
[1761073915584,0.5313,4014.4,4014.3,0.44821]
[1761073916481,0.5313,4014.4,4013.9,3.21088244]
[1761073916687,0.3179,4014.3,4014.2,0.44822]
[1761073916888,0.5313,4014.3,4014.2,0.44822]
[1761073918983,0.3179,4014.1,4013.9,3.21088244]
[1761073919188,0.3179,4014.1,4014.0,0.44824]
[1761073920897,0.131,4014.5,4014.4,0.4482]
[1761073921090,0.131,4014.5,4014.4,3.656]
[1761073921295,0.4489,4014.5,4014.4,3.656]
[1761073923287,0.131,4015.0,4014.9,0.44814]
[1761073923486,4.00028,4015.5,4014.9,4.32816]
[1761073923687,4.00028,4015.5,4015.4,0.44809]
[1761073923900,4.31818,4015.5,4015.4,0.44809]
[1761073924490,3.8701,4015.5,4015.4,0.44809]
[1761073924695,4.31818,4015.5,4015.4,0.44809]
[1761073925103,1.11038,4015.5,4015.4,0.44809]
[1761073925593,0.6623,4015.5,4015.4,0.44809]
[1761073925790,0.6623,4015.5,4015.4,3.65589]
[1761073926395,1.11038,4015.5,4015.4,3.65589]
[1761073927008,1.32038,4015.5,4015.4,3.65589]
[1761073929199,0.8723,4015.5,4015.4,3.65589]
[1761073935412,1.18943,4015.1,4015.0,3.65593]
[1761073935611,0.3179,4014.7,4014.6,0.44818]
[1761073935816,0.7413,4014.7,4014.6,0.44818]
[1761073936016,1.18947,4014.7,4014.6,0.44818]
[1761073936216,0.7413,4014.7,4014.6,0.44818]
[1761073936817,1.18948,4014.6,4014.5,3.2078]
[1761073937210,1.18948,4014.6,4014.3,8.873]
[1761073937211,1.18954,4014.1,4014.0,3.2078]
[1761073938106,1.18954,4014.1,4013.9,0.00308244]
[1761073938107,0.8704,4014.0,4013.9,0.00308244]
[1761073942423,0.6604,4014.0,4013.9,0.00308244]
[1761073942619,0.6604,4014.0,4013.9,0.45134244]
[1761073943317,0.8919,4014.0,4013.9,0.45134244]
[1761073943518,0.323,4014.3,4014.2,0.44822]
[1761073943717,0.323,4014.3,4014.2,3.65602]
[1761073943920,0.5387,4014.3,4014.2,3.65602]
[1761073946816,0.323,4014.3,4014.2,3.65602]
[1761073947926,0.5387,4014.3,4014.2,3.65602]
[1761073948123,0.1291,4014.5,4014.4,0.4482]
[1761073948124,0.4521,4014.5,4014.4,0.4482]
[1761073949527,0.323,4014.8,4014.5,1.12047]
[1761073949826,0.4521,4015.0,4014.9,0.44814]
[1761073950522,0.323,4015.3,4015.1,1.12029]
[1761073950723,0.323,4015.3,4015.2,3.65591]
[1761073951129,0.5387,4015.3,4015.2,3.65591]
[1761073951426,0.454,4015.5,4015.4,0.44809]
[1761073951721,0.1362,4016.0,4015.9,0.44803]
[1761073951928,0.3519,4016.0,4015.9,3.65583]
[1761073952127,0.6749,4016.0,4015.9,3.65583]
[1761073952321,0.4592,4016.0,4015.9,3.65583]
[1761073952623,0.9064,4016.0,4015.9,3.65583]
[1761073952821,0.4592,4016.0,4015.9,3.65583]
[1761073953222,0.6749,4016.0,4015.9,3.65583]
[1761073953422,0.6749,4016.0,4015.9,3.8530756]
[1761073954023,0.4592,4016.0,4015.9,3.8530756]
[1761073954321,0.1362,4016.0,4015.9,3.8530756]
[1761073954529,0.4592,4016.0,4015.9,3.8530756]
[1761073955424,0.00304493,4016.2,4016.1,0.44801]
[1761073955919,0.32604493,4016.2,4016.1,0.44801]
[1761073958129,0.32604493,4016.2,4016.1,1.11245179]
[1761073958327,0.32604493,4016.2,4016.1,0.44801]
[1761073958630,0.4592,4016.5,4016.4,0.44798]
[1761073958828,0.4592,4016.5,4016.4,12.52478]
[1761073959325,0.323,4017.2,4017.1,0.4479]
[1761073959524,0.5834,4018.0,4017.9,0.44781]
[1761073960734,0.58553208,4018.0,4017.9,0.44781]
[1761073961629,0.90853208,4018.0,4017.9,0.44781]
[1761073962837,0.7702,4017.8,4017.7,12.0788]
[1761073963229,0.7702,4017.8,4017.7,12.96043]
[1761073965732,0.323,4017.8,4017.7,13.17853]
[1761073966030,0.5387,4017.8,4017.7,12.96043]
[1761073966231,0.7702,4017.8,4017.7,12.96043]
[1761073966728,0.5387,4017.8,4017.7,13.17853]
[1761073966938,0.00213208,4018.0,4017.9,1.09971]
[1761073967338,0.67703208,4018.0,4017.9,1.09971]
[1761073967524,0.32513208,4018.0,4017.9,1.09971]
[1761073967834,0.00213208,4018.0,4017.9,1.09971]
[1761073969835,0.7702,4017.8,4017.7,4.08943]
[1761073970031,0.5387,4017.8,4017.7,4.30753]
[1761073970231,0.5387,4017.8,4017.7,13.18753]
[1761073970232,0.323,4017.8,4017.7,13.18753]
[1761073970433,0.46133208,4018.0,4017.9,1.09971]
[1761073970736,0.00213208,4018.0,4017.9,1.09971]
[1761073971033,0.33603208,4018.0,4017.9,1.09971]
[1761073971335,0.69103208,4018.0,4017.9,1.09971]
[1761073972236,0.69103208,4018.0,4017.9,1.09881]
[1761073972438,0.46783208,4018.0,4017.9,1.09881]
[1761073973539,0.00213208,4018.0,4017.9,1.09881]
[1761073978143,0.44768,4019.1,4017.9,1.09881]
[1761073978144,0.1362,4019.5,4019.4,0.44764]
[1761073978346,0.5733,4019.5,4019.4,4.08374]
[1761073978546,0.5733,4019.5,4019.4,4.29874]
[1761073978844,0.9072,4019.5,4019.4,4.08374]
[1761073979251,0.90900518,4019.5,4019.4,4.08374]
[1761073980348,0.00180518,4019.5,4019.4,4.29874]
[1761073980542,0.3339,4020.1,4020.0,0.44757]
[1761073980739,0.5571,4020.1,4020.0,12.96567]
[1761073980951,0.3339,4020.1,4020.0,13.18067]
[1761073981346,0.5571,4020.1,4020.0,13.18067]
[1761073981548,0.56028765,4020.1,4020.0,13.18301707]
[1761073981745,0.00318765,4020.1,4020.0,13.18301707]
[1761073981949,0.00318765,4020.1,4020.0,13.84745886]
[1761073982449,0.00318765,4020.1,4020.0,13.18301707]
[1761073982650,0.9028,4021.0,4020.9,0.87577]
[1761073982854,0.6889,4021.0,4020.9,13.17857]
[1761073983354,0.3339,4021.4,4021.3,0.66202]
[1761073983551,0.77312605,4021.4,4021.3,0.87572]
[1761073983858,0.3339,4021.3,4021.2,8.88]
[1761073984152,0.3339,4021.3,4020.9,3.2078]
[1761073984153,0.9028,4021.0,4020.0,3.42474707]
[1761073984344,0.771,4020.1,4020.0,3.21014707]
[1761073984549,0.771,4020.1,4020.0,0.00234707]
[1761073984750,5.771,4020.1,4020.0,0.00234707]
[1761073986453,0.3339,4020.4,4020.3,1.09084]
[1761073986754,0.5571,4020.7,4020.6,0.8758]
[1761073987058,0.5571,4020.7,4020.6,4.2986]
[1761073987658,0.771,4020.7,4020.6,4.0836]
[1761073988249,0.771,4020.7,4020.6,3.6553]
[1761073988544,0.771,4020.7,4020.3,8.882]
[1761073988545,5.771,4020.7,4020.3,8.882]
[1761073988749,0.771,4020.4,4020.3,8.882]
[1761073991461,0.771,4020.4,4020.3,9.0966]
[1761073992160,0.771,4020.4,4020.3,9.3103]
[1761073992955,0.771,4020.4,4020.3,8.882]
[1761073993958,0.3339,4020.4,4020.3,9.5253]
[1761073994156,0.1318,4020.5,4020.4,1.09083]
[1761073994351,0.6889,4020.5,4020.4,1.09083]
[1761073994551,0.6889,4020.5,4020.4,0.87583]
[1761073995161,0.6889,4020.5,4020.4,1.09083]
[1761073995351,0.4657,4020.5,4020.4,1.09083]
[1761073995862,0.5689,4021.0,4020.9,0.87577]
[1761073996055,0.5689,4021.0,4020.9,4.08357]
[1761073996255,0.9028,4021.0,4020.9,3.2078]
[1761073996758,0.9028,4020.5,4020.4,3.2078]
[1761073997355,0.9028,4020.5,4020.4,3.86993]
[1761073998265,0.1318,4021.0,4020.9,0.66207]
[1761073998266,0.5689,4021.0,4020.9,0.66207]
[1761073998467,0.5689,4021.0,4020.9,3.86987]
[1761073998767,0.8841,4021.0,4020.9,3.86987]
[1761073999457,1.33156,4021.0,4020.9,3.2078]
[1761074000957,6.33156,4021.0,4020.9,3.2078]
[1761074001362,0.8841,4021.0,4020.9,3.65527]
[1761074003065,1.33156,4021.0,4020.9,3.2078]
[1761074003368,0.8909,4020.5,4020.4,3.2078]
[1761074004668,0.8909,4020.5,4020.4,3.65533]
[1761074006662,1.33842,4020.5,4020.4,3.2078]
[1761074006971,1.21024,4020.3,4020.2,8.888]
[1761074007266,0.7627,4020.3,4020.2,8.888]
[1761074007562,0.1282,4020.5,4020.4,0.87363]
[1761074007563,0.4628,4020.5,4020.4,0.87363]
[1761074007760,0.6761,4020.5,4020.4,4.08143]
[1761074008363,0.8909,4020.5,4020.4,4.08143]
[1761074010362,0.6761,4020.5,4020.4,4.29653]
[1761074010568,0.6761,4020.5,4020.4,4.08143]
[1761074010861,0.8909,4020.5,4020.4,4.08143]
[1761074011867,0.4628,4020.5,4020.4,4.29653]
[1761074012767,0.6761,4020.5,4020.4,4.08143]
[1761074015565,0.6761,4020.5,4020.4,4.29653]
[1761074016375,1.22830423,4020.8,4020.7,1.0887]
[1761074016573,0.3346,4020.8,4020.7,1.0887]
[1761074017074,0.8945,4021.0,4020.9,0.87358]
[1761074017268,0.8945,4021.0,4020.9,4.08138]
[1761074018766,0.8945,4021.0,4020.9,3.65527]
[1761074019163,0.8945,4021.0,4020.9,3.87077]
[1761074019369,0.8945,4021.0,4020.9,4.08137]
[1761074019570,0.8945,4021.0,4020.9,3.87077]
[1761074023476,0.8945,4021.0,4020.9,3.4233]
[1761074024065,1.34196,4021.0,4020.9,3.2078]
[1761074027365,0.8945,4021.0,4020.9,3.2078]
[1761074027565,0.8945,4021.0,4020.9,3.4233]
[1761074027770,0.8945,4021.0,4020.9,3.6339]
[1761074029180,0.8945,4021.0,4020.9,3.849]
[1761074029475,0.3346,4021.0,4020.9,4.29647]
[1761074030171,0.00212605,4021.4,4021.3,0.2151]
[1761074030478,0.00212605,4021.4,4021.3,9.94563]
[1761074032370,0.54072605,4021.4,4021.3,9.94563]
[1761074032566,1.19874605,4021.4,4021.3,9.2831]
[1761074032770,0.75132605,4021.4,4021.3,9.2831]
[1761074033075,0.883,4021.0,4020.9,3.87027]
[1761074033282,0.883,4021.0,4020.9,4.08527]
[1761074033877,0.3209,4021.0,4020.9,4.30027]
[1761074034580,0.5386,4021.0,4020.9,4.30027]
[1761074034784,0.6724,4021.0,4020.9,4.30027]
[1761074036579,0.883,4021.0,4020.9,4.08527]
[1761074036880,0.00212605,4021.4,4021.3,1.09243]
[1761074037181,0.32302605,4021.4,4021.3,1.09243]
[1761074037375,0.00212605,4021.4,4021.3,1.09243]
[1761074038278,0.32302605,4021.4,4021.3,1.09243]
[1761074040072,0.00212605,4021.4,4021.3,1.09243]
[1761074041984,0.32302605,4021.4,4021.3,1.09243]
[1761074042178,0.54072605,4021.4,4021.3,1.09243]
[1761074042488,0.00212605,4021.4,4021.3,1.09243]
[1761074043274,0.00212605,4021.4,4021.3,6.09243]
[1761074046489,1.78549163,4023.1,4021.3,6.09243]
[1761074046490,0.4491,4022.5,4022.4,1.08601]
[1761074046693,0.6668,4022.5,4022.4,4.29381]
[1761074047391,0.66923639,4022.5,4022.4,4.29381]
[1761074047590,0.66923639,4022.5,4022.4,4.08091]
[1761074049387,0.87983639,4022.5,4022.4,4.08091]
[1761074049981,0.87983639,4022.5,4022.4,3.6336]
[1761074050297,1.32713639,4022.5,4022.4,3.6336]
[1761074052395,1.32713639,4022.5,4022.4,3.2078]
[1761074052784,0.89883639,4022.5,4022.4,3.6336]
[1761074053089,1.32713639,4022.5,4022.4,3.6336]
[1761074053998,0.77063639,4022.5,4022.4,3.8465]
[1761074054191,1.12213639,4022.5,4022.4,3.8465]
[1761074054498,1.12213639,4022.5,4022.4,3.6336]
[1761074054795,1.33273639,4022.5,4022.4,3.6336]
[1761074055998,0.32333639,4022.5,4022.4,3.8465]
[1761074056198,0.00243639,4022.5,4022.4,4.29381]
[1761074057290,0.44973639,4022.5,4022.4,3.8465]
[1761074057485,0.77063639,4022.5,4022.4,3.8465]
[1761074057891,0.32333639,4022.5,4022.4,3.8465]
[1761074058097,0.77063639,4022.5,4022.4,3.8465]
[1761074058492,0.98833639,4022.5,4022.4,3.8465]
[1761074058695,1.12213639,4022.5,4022.4,3.8465]
[1761074058895,0.32333639,4022.5,4022.4,3.846]
[1761074059196,0.77063639,4022.5,4022.4,3.846]
[1761074059499,1.11243639,4022.5,4022.4,3.846]
[1761074059799,1.34243639,4022.5,4022.4,3.2078]
[1761074060292,1.34243639,4022.5,4022.4,3.4202]
[1761074060493,1.34243639,4022.5,4022.4,3.2078]
[1761074061995,2.68368838,4022.5,4022.4,3.2078]
[1761074063094,0.44732,4022.3,4022.2,8.854]
[1761074063293,2.13290303,4022.3,4022.2,9.0671]
[1761074064494,2.13290303,4022.3,4022.2,9.2784]
[1761074064795,2.13290303,4022.3,4022.2,8.854]
[1761074065001,1.24052,4022.3,4022.2,8.854]
[1761074065394,2.13333599,4022.3,4022.2,9.2784]
[1761074065705,2.13333599,4022.3,4022.2,9.4905]
[1761074065902,1.24052,4022.3,4022.2,9.4905]
[1761074066098,0.44732,4022.3,4022.2,9.4905]
[1761074066301,1.90544486,4022.3,4022.2,9.4905]
[1761074066494,2.13334486,4022.3,4022.2,9.0671]
[1761074066801,1.24052,4022.3,4022.2,9.0671]
[1761074067107,1.24052,4022.3,4022.2,8.854]
[1761074067698,1.24052,4022.3,4022.2,9.0671]
[1761074069001,1.24052,4022.3,4022.2,0.2131]
[1761074071205,0.00243639,4022.5,4022.3,0.2121]
[1761074071508,0.44731,4022.4,4022.3,0.6365]
[1761074071708,0.44731,4022.4,4022.3,3.8443]
[1761074072800,1.24051,4022.4,4022.3,3.6322]
[1761074073005,1.24051,4022.4,4022.3,3.8443]
[1761074074409,2.13333486,4022.4,4022.3,3.8443]
[1761074074709,1.24051,4022.4,4022.3,0.6365]
[1761074075302,2.13333486,4022.4,4022.3,0.6365]
[1761074076907,1.01261,4022.4,4022.3,3.8443]
[1761074077108,0.44731,4022.4,4022.3,3.6322]
[1761074077508,0.78981,4022.4,4022.3,3.6322]
[1761074077811,0.78981,4022.4,4022.3,3.8443]
[1761074078808,0.49912324,4022.7,4022.6,0.4409]
[1761074079011,0.49912324,4022.7,4022.6,0.7836]
[1761074079316,0.44727,4022.7,4022.6,0.7836]
[1761074079803,0.45029263,4022.7,4022.6,0.7836]
[1761074082313,0.00302263,4022.7,4022.6,0.7836]
[1761074082518,1.11796,4023.6,4022.6,5.4409]
[1761074082713,0.44712,4024.1,4024.0,0.7836]
[1761074082912,0.99165704,4024.1,4024.0,0.7836]
[1761074083107,1.21445704,4024.1,4024.0,0.7836]
[1761074083616,1.01242,4024.1,4024.0,0.7836]
[1761074083922,1.01476734,4024.1,4024.0,0.78676174]
[1761074085118,0.79196734,4024.1,4024.0,0.78676174]
[1761074085322,0.79196734,4024.1,4024.0,4.12766174]
[1761074085323,0.56764734,4024.1,4024.0,4.12766174]
[1761074085520,0.56764734,4024.1,4024.0,3.99456174]
[1761074085714,0.00234734,4024.1,4024.0,0.91986174]
[1761074085918,0.56764734,4024.1,4024.0,0.78676174]
[1761074086215,0.79554734,4024.1,4024.0,3.99456174]
[1761074086421,0.56764734,4024.1,4024.0,3.99456174]
[1761074086813,0.79554734,4024.1,4024.0,0.78676174]
[1761074088320,0.79554734,4024.1,4024.0,0.44406174]
[1761074089216,0.79554734,4024.1,4024.0,0.78676174]
[1761074089217,0.00234734,4024.1,4024.0,0.78676174]
[1761074089422,0.79554734,4024.1,4024.0,0.44406174]
[1761074090428,0.79554734,4024.1,4024.0,3.65186174]
[1761074090727,0.79554734,4024.1,4024.0,3.99636174]
[1761074090926,0.00234734,4024.1,4024.0,4.12316174]
[1761074091334,0.54894734,4024.1,4024.0,4.12316174]
[1761074091531,0.76934734,4024.1,4024.0,0.78856174]
[1761074091721,0.76934734,4024.1,4024.0,0.23276174]
[1761074092125,0.76934734,4024.1,4024.0,1.74e-06]
[1761074092328,1.21421,4023.3,4023.2,0.2204]
[1761074092717,1.34424,4023.0,4022.9,0.4296]
[1761074092922,1.34424,4023.0,4022.0,0.1268]
[1761074092923,0.44731,4022.4,4022.3,3.417]
[1761074093226,0.44731,4022.4,4021.9,0.3099]
[1761074093227,0.44735,4022.0,4021.9,6.77788654]
[1761074093432,0.44735,4022.0,4021.9,6.58586213]
[1761074094225,0.3196,4022.3,4022.0,0.3099]
[1761074094536,0.44729,4022.6,4022.5,0.7959]
[1761074094733,0.44729,4022.6,4022.5,12.8447]
[1761074094928,0.44729,4022.6,4022.5,17.8447]
[1761074095329,0.44727,4022.8,4022.7,0.7395]
[1761074097630,0.76687,4022.8,4022.7,0.7395]
[1761074098528,0.5466,4023.4,4022.7,0.4296]
[1761074098733,0.99382,4023.2,4023.1,0.7395]
[1761074098933,0.44722,4023.3,4023.2,0.3099]
[1761074099237,0.44722,4023.3,4023.2,0.7395]
[1761074099941,0.44716,4023.7,4023.6,0.7395]
[1761074100139,0.44716,4023.7,4023.6,3.9473]
[1761074100333,0.44713,4024.0,4023.7,0.3099]
[1761074100537,0.44713,4024.0,4023.9,0.7395]
[1761074100834,0.44713,4024.0,4023.9,9.5835]
[1761074101444,0.76673,4024.0,4023.9,9.5835]
[1761074101637,1.34413,4024.0,4023.9,9.2736]
[1761074102037,0.00234734,4024.1,4023.9,9.2736]
[1761074102239,0.44946734,4024.1,4024.0,0.7395]
[1761074102443,0.76906734,4024.1,4024.0,0.7395]
[1761074102740,1.21646734,4024.1,4024.0,0.4296]
[1761074102948,0.897,4024.0,4023.9,8.844]
[1761074103445,0.897,4024.0,4023.9,9.0644]
[1761074104843,0.227,4023.6,4023.5,0.7395]
[1761074105044,0.5466,4023.6,4023.5,0.7395]
[1761074106441,0.5466,4023.6,4023.5,0.4296]
[1761074106638,0.99377,4023.6,4023.5,0.7395]
[1761074107040,0.99377,4023.6,4023.5,9.5835]
[1761074108139,1.21417,4023.6,4023.5,9.2736]
[1761074108339,0.3196,4023.5,4023.4,3.2078]
[1761074108541,0.6766,4023.5,4023.4,0.7395]
[1761074110236,0.6766,4023.5,4023.4,0.4296]
[1761074110539,0.897,4023.5,4023.4,0.4296]
[1761074111032,0.897,4023.5,4023.0,8.841]
[1761074111033,0.89462,4023.2,4023.0,8.841]
[1761074111235,1.21431,4022.4,4022.3,0.0895]
[1761074111540,0.44733,4022.2,4022.1,3.2078]
[1761074111743,0.99393,4022.2,4022.1,11.3058]
[1761074113744,1.34435,4022.0,4021.9,0.00236213]
[1761074115648,6.34435,4022.0,4021.9,0.00236213]
[1761074115843,0.44742,4021.4,4021.3,8.85]
[1761074116043,1.21442,4021.4,4021.3,8.85]
[1761074116443,1.21442,4021.4,4020.1,0.8817265]
[1761074116444,0.767,4020.9,4020.2,0.65772548]
[1761074116645,0.76721,4019.7,4019.6,3.2078]
[1761074116841,0.76721,4019.7,4019.6,12.0688]
[1761074117042,0.44761,4019.8,4019.6,12.07188471]
[1761074117449,0.3196,4019.7,4019.6,8.86408471]
[1761074117753,3.9748,4019.7,4019.6,8.86408471]
[1761074118643,0.3475,4019.6,4018.8,3.2078]
[1761074118948,0.44769,4019.0,4018.9,8.871]
[1761074119744,0.44769,4019.0,4018.9,8.87335791]
[1761074120953,0.90229,4019.0,4018.9,8.87335791]
[1761074122045,1.34819,4019.0,4018.9,8.87335791]
[1761074122247,1.34819,4019.0,4018.9,8.20811859]
[1761074122653,1.34819,4019.0,4018.9,0.00235791]
[1761074123251,1.22115,4018.4,4018.3,8.30129]
[1761074124152,1.22115,4018.4,4018.3,8.3034529]
[1761074124851,0.7734,4018.4,4018.3,8.3034529]
[1761074125155,0.5534,4018.4,4018.3,8.3034529]
[1761074125849,0.3275,4018.8,4018.3,0.0021629]
[1761074126051,0.1271,4019.0,4018.6,3.2078]
[1761074126253,0.3275,4019.7,4018.7,1.11931]
[1761074126450,3.2078,4020.2,4019.4,3.2078]
[1761074126652,3.2078,4020.2,4019.8,0.44759]
[1761074126653,3.5353,4020.2,4019.8,0.44759]
[1761074126852,3.2078,4020.2,4020.1,0.44756]
[1761074127647,0.3275,4020.1,4019.5,8.874]
[1761074127848,0.1271,4020.0,4019.9,3.65538]
[1761074128049,0.3275,4020.4,4020.2,0.44754]
[1761074129458,0.3275,4020.3,4020.0,9.32157]
[1761074129661,0.3275,4020.3,4020.1,0.44756]
[1761074130458,3.21075016,4020.9,4020.0,8.874]
[1761074130459,0.3275,4020.1,4020.0,8.874]
[1761074130847,0.4546,4020.5,4020.3,0.44753]
[1761074131051,0.00295016,4020.9,4020.8,0.44749]
[1761074131652,0.00295016,4020.9,4020.8,5.44749]
[1761074133559,0.00295016,4020.9,4020.8,5.6491938]
[1761074133860,0.3275,4021.7,4021.6,0.4474]
[1761074134056,0.3275,4021.7,4021.6,12.5262]
[1761074134651,0.32970836,4021.7,4021.6,12.52821002]
[1761074136457,0.55560836,4021.7,4021.6,12.52821002]
[1761074136658,5.77560836,4021.7,4021.6,3.20981002]
[1761074139258,0.77560836,4021.7,4021.6,3.65721002]
[1761074139757,0.77560836,4021.7,4021.6,3.20981002]
[1761074140162,0.77560836,4021.7,4021.6,3.65721002]
[1761074141070,0.00220836,4021.7,4021.6,3.65721002]
[1761074141363,0.00220836,4021.7,4021.6,12.53321002]
[1761074141966,0.00220836,4021.7,4021.6,17.53321002]
[1761074142167,0.3275,4022.8,4022.7,0.44727]
[1761074142365,0.3275,4022.8,4022.7,3.65507]
[1761074142667,0.7734,4022.8,4022.7,3.65507]
[1761074143069,0.55564144,4022.8,4022.7,3.65507]
[1761074143265,0.32974144,4022.8,4022.7,3.65507]
[1761074143965,0.55564144,4022.8,4022.7,3.65507]
[1761074144168,0.00224144,4022.8,4022.7,3.65507]
[1761074144370,0.32974144,4022.8,4022.7,3.65507]
[1761074144568,0.00224144,4022.8,4022.7,3.65507]
[1761074144973,0.00224144,4022.8,4022.7,8.65507]